fUST/lending_fUST_20251030
["ID","MTS","AMOUNT","RATE_DAILY","PERIOD"]
[392631767,1761765034176,-3880.2,0.00022,7]
[392631768,1761765034186,-1961.96,0.00022001,3]
[392631769,1761765034196,-500.0,0.00022028,5]
[392631770,1761765034205,-358.18853025,0.00022133,2]
[392631771,1761765034215,-500.0,0.00022302,5]
[392631772,1761765034225,-2000.0,0.00022316,2]
[392631773,1761765034235,-420.0,0.00022446,2]
[392631774,1761765034247,-340.0,0.0002245,2]
[392631775,1761765034257,-403.72361849,0.00022491,2]
[392631776,1761765034267,-441.34318316,0.0002251,2]
[392631777,1761765034277,-346.17181497,0.00022521,2]
[392631778,1761765034287,-366.0,0.00022552,2]
[392631779,1761765034299,-500.0,0.00022576,5]
[392631780,1761765034310,-634.09,0.00022602,2]
[392631781,1761765034319,-500.0,0.00022602,2]
[392631782,1761765034335,-160.0,0.00022614,2]
[392631783,1761765034344,-2500.0,0.00022864,2]
[392631784,1761765034353,-500.0,0.00022973,2]
[392631785,1761765034362,-260.0,0.00023162,2]
[392631786,1761765034372,-634.09,0.00023287,2]
[392631787,1761765034381,-420.4107533,0.00023287,2]
[392631788,1761765034391,-232.16836778,0.00023326,2]
[392631789,1761765034401,-3000.0,0.00023412,2]
[392631790,1761765034410,-360.0,0.0002371,2]
[392631791,1761765034419,-1000.0,0.00023786,2]
[392631792,1761765034429,-1000.0,0.00023786,2]
[392631793,1761765034438,-1000.0,0.00023786,2]
[392631794,1761765034448,-1000.0,0.00023786,2]
[392631795,1761765034457,-1000.0,0.00023786,2]
[392631796,1761765034466,-1000.0,0.00023786,2]
[392631797,1761765034475,-1000.0,0.00023786,2]
[392631798,1761765034484,-1000.0,0.00023786,2]
[392631799,1761765034493,-1000.0,0.00023786,2]
[392631800,1761765034502,-1000.0,0.00023786,2]
[392631801,1761765034511,-1000.0,0.00023786,2]
[392631802,1761765034520,-1000.0,0.00023786,2]
[392631803,1761765034529,-1000.0,0.00023786,2]
[392631804,1761765034538,-1000.0,0.00023786,2]
[392631805,1761765034547,-1000.0,0.00023786,2]
[392631806,1761765034556,-1000.0,0.00023786,2]
[392631807,1761765034565,-1000.0,0.00023786,2]
[392631808,1761765034577,-1000.0,0.00023786,2]
[392631809,1761765034585,-1000.0,0.00023786,2]
[392631810,1761765034594,-1000.0,0.00023786,2]
[392631811,1761765034603,-634.09,0.00023804,2]
[392631812,1761765034612,-180.02520353,0.00023932,2]
[392631813,1761765034621,-3500.0,0.0002396,2]
[392631814,1761765034630,-634.09,0.00023999,2]
[392631815,1761765034640,-634.09,0.00023999,2]
[392631816,1761765034649,-720.0,0.00024099,20]
[392631817,1761765034657,-460.0,0.00024258,2]
[392631818,1761765034666,-634.09,0.00024302,2]
[392631819,1761765034675,-587.0,0.00024426,2]
[392631820,1761765034684,-4000.0,0.00024508,2]
[392631821,1761765034693,-398.97768505,0.00024521,2]
[392631822,1761765034702,-634.09,0.0002455,2]
[392631823,1761765034711,-168.54296332,0.0002457,2]
[392631824,1761765034720,-150.0,0.00024658,2]
[392631825,1761765034729,-634.09,0.00024739,2]
[392631826,1761765034738,-634.09,0.00024799,2]
[392631827,1761765034746,-634.09,0.00024799,2]
[392631828,1761765034755,-634.09,0.00024799,2]
[392631829,1761765034764,-634.09,0.00024799,2]
[392631830,1761765034773,-634.09,0.00024799,2]
[392631831,1761765034781,-634.09,0.00024799,2]
[392631832,1761765034791,-634.09,0.00024799,2]
[392631833,1761765034800,-634.09,0.00024799,2]
[392631834,1761765034809,-634.09,0.00024799,2]
[392631835,1761765034819,-634.09,0.00024799,2]
[392631836,1761765034833,-634.09,0.00024799,2]
[392631837,1761765034843,-634.27793087,0.00024799,2]
[392631838,1761765034854,-878.6,0.000248,2]
[392631839,1761765034865,-560.0,0.00024806,2]
[392631840,1761765034874,-179.18396853,0.00024839,2]
[392631841,1761765034884,-563263.14739127,0.000249,2]
[392631842,1761765035042,-618.13832791,0.000249,2]
[392631843,1761765035054,-897.79183438,0.000249,2]
[392631862,1761765037861,-297.2090077,0.00020631,3]
[392631864,1761765037873,-193.2809923,0.00020631,3]
[392631866,1761765037882,-518.21374153,0.0002147,10]
[392631868,1761765037893,-1987.69625847,0.0002147,10]
[392631869,1761765037902,-980.98,0.00022001,3]
[392631870,1761765037913,-33505.63705144,0.000249,2]
[392631871,1761765037923,-4500.0,0.00025056,2]
[392631873,1761765037932,-250.0,0.00025205,2]
[392631875,1761765037942,-660.0,0.00025354,2]
[392631877,1761765037951,-5000.0,0.00025604,2]
[392631879,1761765037962,-496.0,0.00025688,2]
[392631881,1761765037971,-300.0,0.00025753,2]
[392631883,1761765037981,-188.61917,0.00025824,20]
[392631885,1761765037992,-168.0,0.00025853,2]
[392631887,1761765038000,-168.0,0.00026135,2]
[392631889,1761765038010,-5500.0,0.00026152,2]
[392631891,1761765038020,-151.0,0.0002616,2]
[392631893,1761765038029,-262.78653592,0.0002616,2]
[392631895,1761765038039,-500.0,0.0002616,2]
[392631898,1761765038050,-168.0,0.00026201,2]
[392631900,1761765038059,-200.35276751,0.00026215,2]
[392631902,1761765038068,-500.0,0.00026215,2]
[392631904,1761765038078,-500.0,0.0002627,2]
[392631905,1761765038087,-500.0,0.00026324,2]
[392631908,1761765038098,-500.0,0.00026379,2]
[392631909,1761765038107,-496.0,0.00026441,7]
[392631912,1761765038117,-864.0,0.00026509,30]
[392631914,1761765038126,-451.78355513,0.00026521,2]
[392631915,1761765038136,-168.0,0.00026533,2]
[392631917,1761765038145,-168.0,0.00026577,2]
[392631919,1761765038155,-823.0,0.0002658,2]
[392631922,1761765038165,-168.0,0.00026594,2]
[392631924,1761765038175,-4239.97005597,0.000267,2]
[392631925,1761765038185,-3880.2,0.000269,7]
[392631927,1761765038194,-168.0,0.0002711,2]
[392631929,1761765038204,-496.0,0.00027147,2]
[392631931,1761765038214,-168.0,0.00027276,2]
[392631933,1761765038224,-496.0,0.00027364,2]
[392631935,1761765038234,-230.1193166,0.0002737,30]
[392631937,1761765038243,-1000.51678439,0.00027397,2]
[392631939,1761765038254,-500.0,0.00027397,2]
[392631941,1761765038264,-1999.0,0.00027397,2]
[392631944,1761765038274,-150.0,0.00027397,5]
[392631945,1761765038283,-4279.06,0.000274,2]
[392631946,1761765038293,-498.0,0.00027469,7]
[392631947,1761765038302,-168.0,0.00027493,2]
[392631948,1761765038312,-1982.36,0.000275,7]
[392631949,1761765038321,-403.72361849,0.000275,7]
[392631950,1761765038332,-168.0,0.00027558,2]
[392631951,1761765038341,-496.0,0.00027607,2]
[392631952,1761765038351,-380.625,0.00027608,17]
[392631953,1761765038361,-185.25657208,0.00027608,17]
[392631954,1761765038371,-188.61917,0.0002761,5]
[392631955,1761765038381,-496.0,0.00027654,2]
[392631956,1761765038393,-285.95,0.00027671,7]
[392631957,1761765038403,-500.0,0.00027671,2]
[392631958,1761765038413,-496.0,0.00027847,2]
[392631959,1761765038422,-484.16,0.00027945,2]
[392631960,1761765038431,-250.0,0.00027945,5]
[392631961,1761765038441,-168.0,0.00027969,2]
[392631963,1761765038451,-498.0,0.00028072,2]
[392631964,1761765038460,-496.0,0.00028081,2]
[392631965,1761765038469,-168.0,0.00028116,2]
[392631967,1761765038478,-168.0,0.00028163,2]
[392631969,1761765038487,-496.0,0.00028188,2]
[392631971,1761765038497,-168.0,0.00028243,2]
[392631973,1761765038507,-350.0,0.00028493,5]
[392631975,1761765038515,-504.58942521,0.00028521,2]
[392631977,1761765038525,-150.0,0.00028585,30]
[392631979,1761765038534,-2000.0,0.000287,2]
[392631981,1761765038543,-1999.0,0.00028767,4]
[392631983,1761765038553,-927.74479763,0.00028788,2]
[392631985,1761765038562,-1152.0,0.00028924,2]
[392631987,1761765038571,-450.0,0.00029041,5]
[392631989,1761765038582,-4279.06,0.000291,2]
[392631991,1761765038591,-1000.0,0.0002916,30]
[392631993,1761765038600,-550.0,0.00029589,5]
[392631995,1761765038610,-2000.0,0.000297,2]
[392631997,1761765038619,-2000.0,0.00029981,7]
[392631999,1761765038629,-40286.0,0.0003,2]
[392632001,1761765038639,-242.844271,0.0003,5]
[392632003,1761765038648,-500.0,0.0003,11]
[392632005,1761765038657,-500.0,0.0003,11]
[392632007,1761765038666,-1999.0,0.00030136,6]
[392632009,1761765038676,-228.51933114,0.00030137,2]
[392632012,1761765038686,-650.0,0.00030137,5]
[392632013,1761765038695,-153.368797,0.00030295,20]
[392632016,1761765038705,-557.39529529,0.00030521,2]
[392632017,1761765038715,-750.0,0.00030685,5]
[392632019,1761765038724,-1121.199999,0.000307,4]
[392632022,1761765038734,-169.62692056,0.00031,120]
[392632023,1761765038743,-763.62561078,0.00031,120]
[392632025,1761765038752,-2604.92431276,0.00031,120]
[392632027,1761765038761,-1842.23845374,0.00031,120]
[392632029,1761765038770,-402.90959831,0.00031,120]
[392632031,1761765038779,-367.88278626,0.00031,120]
[392632033,1761765038788,-531.95149908,0.00031,120]
[392632035,1761765038797,-207.74075998,0.00031,120]
[392632037,1761765038807,-294.45004154,0.00031,120]
[392632039,1761765038817,-325.7071247,0.00031,120]
[392632041,1761765038826,-150.0,0.00031184,30]
[392632043,1761765038837,-850.0,0.00031233,5]
[392632045,1761765038846,-1999.0,0.00031506,8]
[392632047,1761765038857,-678.01492871,0.00031781,5]
[392632049,1761765038866,-169.62692056,0.000319,120]
[392632051,1761765038876,-763.62561078,0.000319,120]
[392632053,1761765038885,-2604.92431276,0.000319,120]
[392632055,1761765038895,-1842.23845374,0.000319,120]
[392632057,1761765038908,-402.90959831,0.000319,120]
[392632059,1761765038918,-367.88278626,0.000319,120]
[392632061,1761765038928,-531.95149908,0.000319,120]
[392632063,1761765038938,-207.74075998,0.000319,120]
[392632065,1761765038949,-294.45004154,0.000319,120]
[392632067,1761765038958,-325.7071247,0.000319,120]
[392632069,1761765038968,-1125.352234,0.000319,12]
[392632071,1761765038978,-1444.0,0.00031945,120]
[392632073,1761765038989,-160.0,0.00032,120]
[392632075,1761765038999,-403.72361849,0.00032,120]
[392632077,1761765039010,-4279.06,0.00032,2]
[392632079,1761765039020,-500.0,0.00032046,7]
[392632081,1761765039029,-1000.0,0.00032076,30]
[392632083,1761765039040,-244.0,0.00032076,30]
[392632085,1761765039050,-3880.2,0.000321,7]
[392632087,1761765039060,-153.0,0.00032387,2]
[392632089,1761765039070,-1000.0,0.000324,12]
[392632091,1761765039080,-610.20116537,0.00032521,2]
[392632093,1761765039089,-500.0,0.0003268,5]
[392632095,1761765039099,-302.0,0.00032682,2]
[392632097,1761765039109,-302.0,0.00032702,2]
[392632099,1761765039119,-1999.0,0.00032876,120]
[392632101,1761765039128,-169.62692056,0.000329,120]
[392632103,1761765039138,-763.62561078,0.000329,120]
[392632105,1761765039148,-2604.92431276,0.000329,120]
[392632107,1761765039158,-1842.23845374,0.000329,120]
[392632109,1761765039168,-402.90959831,0.000329,120]
[392632111,1761765039177,-367.88278626,0.000329,120]
[392632112,1761765039189,-531.95149908,0.000329,120]
[392632114,1761765039200,-207.74075998,0.000329,120]
[392632117,1761765039211,-294.45004154,0.000329,120]
[392632119,1761765039223,-325.7071247,0.000329,120]
[392632121,1761765039233,-1000.0,0.000329,12]
[392632123,1761765039243,-25000.0,0.00033,30]
[392632125,1761765039253,-403.72361849,0.00033,30]
[392632127,1761765039263,-695.41533954,0.0003332,7]
[392632129,1761765039276,-436.89216839,0.0003332,7]
[392632133,1761765039302,-832.13218153,0.0003332,7]
[392632135,1761765039315,-35.56031054,0.0003332,7]
[392632137,1761765039324,-1000.0,0.000334,12]
[392632139,1761765039336,-626.8496051,0.000335,3]
[392632141,1761765039348,-4390.52451807,0.000335,3]
[392632143,1761765039360,-591.03,0.000335,3]
[392632145,1761765039371,-4391.59587683,0.000335,3]
[392632147,1761765039381,-190.2085625,0.00033567,2]
[392632149,1761765039391,-25904.693998,0.00033567,2]
[392632151,1761765039400,-570.6256875,0.00033567,2]
[392632153,1761765039409,-192.5145,0.00033636,2]
[392632155,1761765039418,-151.0,0.00033669,31]
[392632157,1761765039428,-307.09217032,0.00033681,10]
[392632159,1761765039438,-151.0,0.00033682,31]
[392632161,1761765039448,-183.85,0.00033682,31]
[392632164,1761765039458,-151.0,0.00033682,31]
[392632167,1761765039468,-248.735712,0.00033682,31]
[392632169,1761765039477,-151.0,0.00033689,15]
[392632171,1761765039487,-151.0,0.00033689,15]
[392632173,1761765039497,-151.0,0.00033689,31]
[392632175,1761765039508,-151.0,0.00033689,31]
[392632177,1761765039517,-151.0,0.00033689,31]
[392632179,1761765039526,-151.0,0.00033689,31]
[392632181,1761765039535,-151.0,0.00033689,31]
[392632183,1761765039544,-151.0,0.00033689,31]
[392632185,1761765039554,-407.96461,0.00033689,31]
[392632187,1761765039563,-407.96461,0.00033689,31]
[392632189,1761765039572,-407.96461,0.00033689,31]
[392632192,1761765039585,-407.96461,0.00033689,31]
[392632194,1761765039594,-407.96461,0.00033689,31]
[392632196,1761765039603,-407.96461,0.00033689,31]
[392632198,1761765039612,-407.96461,0.00033689,31]
[392632200,1761765039621,-407.96461,0.00033689,31]
[392632202,1761765039630,-407.96461,0.00033689,31]
[392632204,1761765039639,-407.96461,0.00033689,31]
[392632206,1761765039648,-407.96461,0.00033689,31]
[392632207,1761765039658,-407.96461,0.00033689,31]
[392632209,1761765039667,-407.96461,0.00033689,31]
[392632211,1761765039676,-407.96461,0.00033689,31]
[392632213,1761765039685,-407.96461,0.00033689,31]
[392632215,1761765039694,-407.96461,0.00033689,31]
[392632216,1761765039703,-1000.0,0.00033689,30]
[392632217,1761765039711,-1000.0,0.00033689,30]
[392632218,1761765039722,-1000.0,0.00033689,30]
[392632219,1761765039731,-1000.0,0.00033689,30]
[392632220,1761765039741,-1000.0,0.00033689,30]
[392632221,1761765039750,-1000.0,0.00033689,30]
[392632222,1761765039759,-1000.0,0.00033689,30]
[392632223,1761765039768,-1000.0,0.00033689,30]
[392632224,1761765039777,-1000.0,0.00033689,30]
[392632225,1761765039785,-1000.0,0.00033689,30]
[392632226,1761765039794,-1000.0,0.00033689,30]
[392632227,1761765039802,-1000.0,0.00033689,30]
[392632228,1761765039811,-1000.0,0.00033689,30]
[392632229,1761765039820,-1000.0,0.00033689,30]
[392632230,1761765039833,-1000.0,0.00033689,30]
[392632231,1761765039842,-1000.0,0.00033689,30]
[392632232,1761765039851,-1000.0,0.00033689,30]
[392632233,1761765039860,-1000.0,0.00033689,30]
[392632234,1761765039869,-1000.0,0.00033689,30]
[392632235,1761765039878,-1000.0,0.00033689,30]
[392632236,1761765039887,-1000.0,0.00033689,30]
[392632237,1761765039896,-1000.0,0.00033689,30]
[392632238,1761765039905,-1000.0,0.00033689,30]
[392632239,1761765039917,-1000.0,0.00033689,30]
[392632240,1761765039925,-1000.0,0.00033689,30]
[392632241,1761765039934,-1000.0,0.00033689,30]
[392632242,1761765039944,-1000.0,0.00033689,30]
[392632243,1761765039954,-1000.0,0.00033689,30]
[392632244,1761765039963,-190.980994,0.00033689,30]
[392632245,1761765039972,-151.0,0.00033689,31]
[392632246,1761765039983,-151.0,0.00033689,31]
[392632247,1761765039993,-151.0,0.00033689,31]
[392632248,1761765040001,-151.0,0.00033689,31]
[392632249,1761765040011,-197.525194,0.00033689,2]
[392632250,1761765040020,-151.0,0.00033689,31]
[392632251,1761765040030,-197.525194,0.00033689,2]
[392632252,1761765040041,-151.0,0.00033689,31]
[392632253,1761765040051,-197.525194,0.00033689,2]
[392632254,1761765040060,-151.0,0.00033689,31]
[392632255,1761765040069,-197.525194,0.00033689,2]
[392632256,1761765040078,-151.0,0.00033689,31]
[392632257,1761765040090,-197.525194,0.00033689,2]
[392632258,1761765040099,-151.0,0.00033689,31]
[392632259,1761765040108,-197.525194,0.00033689,2]
[392632260,1761765040117,-151.0,0.00033689,31]
[392632261,1761765040127,-197.525194,0.00033689,2]
[392632262,1761765040136,-151.0,0.00033689,31]
[392632263,1761765040145,-197.525194,0.00033689,2]
[392632264,1761765040154,-151.0,0.00033689,31]
[392632265,1761765040163,-197.525194,0.00033689,2]
[392632266,1761765040172,-151.0,0.00033689,31]
[392632267,1761765040181,-197.525194,0.00033689,2]
[392632268,1761765040190,-151.0,0.00033689,31]
[392632269,1761765040199,-197.525194,0.00033689,2]
[392632270,1761765040208,-151.0,0.00033689,31]
[392632271,1761765040217,-151.0,0.00033689,31]
[392632272,1761765040225,-151.0,0.00033689,31]
[392632273,1761765040235,-197.525194,0.00033689,2]
[392632274,1761765040245,-151.0,0.00033689,31]
[392632275,1761765040255,-197.525194,0.00033689,2]
[392632276,1761765040265,-286.776224,0.00033689,31]
[392632277,1761765040276,-197.525194,0.00033689,2]
[392632278,1761765040287,-197.525194,0.00033689,2]
[392632279,1761765040297,-197.525194,0.00033689,2]
[392632280,1761765040307,-197.525194,0.00033689,2]
[392632281,1761765040317,-197.525194,0.00033689,2]
[392632282,1761765040326,-197.525194,0.00033689,2]
[392632283,1761765040346,-197.525186,0.00033689,2]
[392632284,1761765040356,-500.0,0.0003369,7]
[392632285,1761765040366,-501.15604204,0.0003369,2]
[392632286,1761765040376,-2004.62416816,0.0003369,2]
[392632287,1761765040385,-4510.40437835,0.0003369,2]
[392632288,1761765040395,-8018.49667262,0.0003369,2]
[392632289,1761765040404,-3526.68065727,0.0003369,5]
[392632290,1761765040536,-485.19408451,0.0003369,2]
[392632291,1761765040546,-1940.77633803,0.0003369,2]
[392632292,1761765040555,-4366.74676057,0.0003369,2]
[392632293,1761765040565,-7763.10535212,0.0003369,2]
[392632294,1761765040574,-3438.39705166,0.0003369,5]
[392632295,1761765040588,-200.0,0.0003369,120]
[392632296,1761765040598,-200.0,0.0003369,120]
[392632297,1761765040606,-206.42295887,0.0003369,120]
[392632298,1761765040616,-176.0,0.0003369,7]
[392632299,1761765040625,-176.0,0.0003369,7]
[392632300,1761765040635,-176.0,0.0003369,7]
[392632301,1761765040644,-177.86860453,0.0003369,7]
[392632302,1761765040653,-152.0,0.0003369,7]
[392632303,1761765040662,-152.0,0.0003369,7]
[392632304,1761765040671,-152.0,0.0003369,7]
[392632305,1761765040680,-152.0,0.0003369,7]
[392632306,1761765040689,-152.0,0.0003369,7]
[392632307,1761765040697,-152.0,0.0003369,7]
[392632308,1761765040706,-152.0,0.0003369,7]
[392632309,1761765040715,-152.0,0.0003369,7]
[392632310,1761765040723,-152.0,0.0003369,7]
[392632311,1761765040733,-152.0,0.0003369,7]
[392632312,1761765040742,-152.0,0.0003369,7]
[392632313,1761765040751,-152.0,0.0003369,7]
[392632314,1761765040760,-152.0,0.0003369,7]
[392632315,1761765040769,-152.0,0.0003369,7]
[392632316,1761765040778,-152.0,0.0003369,7]
[392632317,1761765040788,-281.02854574,0.0003369,7]
[392632318,1761765040798,-1051.77,0.00033693,60]
[392632319,1761765040807,-1000.0,0.00033699,120]
[392632320,1761765040816,-153.368797,0.00033699,5]
[392632321,1761765040825,-299.247273,0.00033702,31]
[392632322,1761765040839,-152.731337,0.00033702,31]
[392632323,1761765040848,-151.0,0.00033702,31]
[392632324,1761765040858,-151.0,0.00033702,31]
[392632325,1761765040866,-151.0,0.00033702,31]
[392632326,1761765040875,-151.0,0.00033702,31]
[392632327,1761765040884,-151.0,0.00033702,31]
[392632328,1761765040892,-161.146462,0.00033702,31]
[392632329,1761765040902,-151.0,0.00033702,31]
[392632330,1761765040914,-153.171209,0.00033702,31]
[392632331,1761765040924,-299.41906131,0.00033702,31]
[392632332,1761765040933,-442.532541,0.00033702,31]
[392632333,1761765040942,-442.532541,0.00033702,31]
[392632334,1761765040954,-442.532541,0.00033702,31]
[392632335,1761765040963,-442.532541,0.00033702,31]
[392632336,1761765040972,-442.532541,0.00033702,31]
[392632337,1761765040984,-442.532541,0.00033702,31]
[392632338,1761765040994,-442.532541,0.00033702,31]
[392632339,1761765041003,-442.532541,0.00033702,31]
[392632340,1761765041012,-442.532541,0.00033702,31]
[392632341,1761765041021,-442.532541,0.00033702,31]
[392632342,1761765041030,-442.532541,0.00033702,31]
[392632343,1761765041039,-442.532541,0.00033702,31]
[392632344,1761765041048,-442.532541,0.00033702,31]
[392632345,1761765041057,-442.532541,0.00033702,31]
[392632346,1761765041067,-442.532541,0.00033702,31]
[392632347,1761765041076,-442.532541,0.00033702,31]
[392632348,1761765041091,-442.532541,0.00033702,31]
[392632349,1761765041101,-442.532541,0.00033702,31]
[392632350,1761765041111,-442.532541,0.00033702,31]
[392632351,1761765041120,-442.532537,0.00033702,31]
[392632352,1761765041129,-151.0,0.00033702,31]
[392632353,1761765041138,-226.467132,0.00033702,31]
[392632354,1761765041147,-886.615962,0.00033702,31]
[392632355,1761765041156,-886.615962,0.00033702,31]
[392632356,1761765041165,-886.615962,0.00033702,31]
[392632357,1761765041175,-886.615962,0.00033702,31]
[392632358,1761765041184,-886.615962,0.00033702,31]
[392632359,1761765041194,-886.615962,0.00033702,31]
[392632360,1761765041204,-886.615962,0.00033702,31]
[392632361,1761765041213,-886.615962,0.00033702,31]
[392632362,1761765041224,-886.615962,0.00033702,31]
[392632363,1761765041234,-886.615962,0.00033702,31]
[392632364,1761765041244,-886.615962,0.00033702,31]
[392632365,1761765041254,-886.615962,0.00033702,31]
[392632366,1761765041263,-886.615962,0.00033702,31]
[392632367,1761765041272,-227.13396737,0.00033702,2]
[392632368,1761765041280,-935.791,0.00033702,90]
[392632369,1761765041289,-721699.7741,0.00033702,30]
[392632370,1761765041299,-501.0287487,0.00033702,2]
[392632371,1761765041308,-502.77818594,0.00033702,2]
[392632373,1761765041317,-500.0,0.00033702,2]
[392632374,1761765041326,-500.0,0.00033702,2]
[392632375,1761765041340,-369.79,0.00033702,2]
[392632376,1761765041350,-500.0,0.00033702,2]
[392632377,1761765041359,-500.0,0.00033702,120]
[392632378,1761765041368,-150.0,0.00033702,2]
[392632379,1761765041377,-501.91797493,0.00033702,2]
[392632380,1761765041386,-500.0,0.00033702,2]
[392632381,1761765041395,-500.0,0.00033702,30]
[392632382,1761765041404,-500.0,0.00033702,2]
[392632384,1761765041414,-501.72164115,0.00033702,2]
[392632386,1761765041423,-500.0,0.00033702,2]
[392632387,1761765041432,-500.0,0.00033702,2]
[392632388,1761765041442,-500.0,0.00033702,2]
[392632389,1761765041450,-500.0,0.00033702,2]
[392632390,1761765041459,-502.30975657,0.00033702,2]
[392632392,1761765041469,-501.6477249,0.00033702,2]
[392632394,1761765041477,-501.40932543,0.00033702,2]
[392632396,1761765041486,-500.0,0.00033702,2]
[392632397,1761765041495,-500.0,0.00033702,120]
[392632399,1761765041505,-502.03812665,0.00033702,2]
[392632400,1761765041514,-500.0,0.00033702,2]
[392632401,1761765041523,-500.0,0.00033702,2]
[392632403,1761765041532,-500.0,0.00033702,2]
[392632404,1761765041541,-500.0,0.00033702,120]
[392632405,1761765041550,-500.0,0.00033702,120]
[392632406,1761765041559,-500.0,0.00033702,120]
[392632407,1761765041568,-500.22779701,0.00033702,2]
[392632408,1761765041577,-294.14768341,0.00033702,120]
[392632409,1761765041591,-500.66095754,0.00033702,2]
[392632410,1761765041601,-500.34517068,0.00033702,2]
[392632411,1761765041610,-500.0,0.00033702,2]
[392632412,1761765041619,-500.07,0.00033702,120]
[392632413,1761765041628,-500.0,0.00033702,2]
[392632414,1761765041637,-170.58523061,0.00033702,120]
[392632415,1761765041646,-183.33944698,0.00033702,2]
[392632416,1761765041656,-500.0,0.00033702,2]
[392632417,1761765041666,-500.0,0.00033702,120]
[392632418,1761765041674,-625.22,0.00033702,120]
[392632419,1761765041683,-500.0,0.00033702,2]
[392632420,1761765041693,-500.0,0.00033702,120]
[392632421,1761765041702,-500.0,0.00033702,120]
[392632422,1761765041711,-266.23,0.00033702,120]
[392632423,1761765041721,-500.0,0.00033702,2]
[392632424,1761765041730,-500.0,0.00033702,120]
[392632425,1761765041739,-500.0,0.00033702,2]
[392632426,1761765041749,-500.0,0.00033702,120]
[392632427,1761765041758,-500.0,0.00033702,120]
[392632428,1761765041767,-486.58,0.00033702,120]
[392632429,1761765041776,-501.45148152,0.00033702,2]
[392632430,1761765041785,-500.0,0.00033702,2]
[392632431,1761765041794,-500.0,0.00033702,2]
[392632432,1761765041803,-500.0,0.00033702,120]
[392632433,1761765041812,-500.0,0.00033702,120]
[392632434,1761765041822,-500.0,0.00033702,120]
[392632435,1761765041833,-500.0,0.00033702,120]
[392632436,1761765041842,-382.35878634,0.00033702,120]
[392632437,1761765041852,-465.98587329,0.00033702,2]
[392632438,1761765041861,-500.0,0.00033702,2]
[392632439,1761765041870,-503.21932376,0.00033702,2]
[392632440,1761765041883,-501.46784131,0.00033702,2]
[392632441,1761765041898,-500.0,0.00033702,2]
[392632442,1761765041913,-500.0,0.00033702,2]
[392632443,1761765041927,-500.0,0.00033702,2]
[392632444,1761765041939,-502.28510624,0.00033702,2]
[392632445,1761765041950,-500.0,0.00033702,2]
[392632446,1761765041962,-500.26017402,0.00033702,2]
[392632447,1761765041975,-500.0,0.00033702,2]
[392632448,1761765041987,-502.46503173,0.00033702,2]
[392632449,1761765041998,-500.93150045,0.00033702,2]
[392632450,1761765042011,-502.50841783,0.00033702,2]
[392632451,1761765042023,-500.50037609,0.00033702,2]
[392632452,1761765042035,-500.92645528,0.00033702,2]
[392632453,1761765042047,-500.27936268,0.00033702,2]
[392632454,1761765042059,-501.49999706,0.00033702,2]
[392632455,1761765042071,-501.82734233,0.00033702,2]
[392632456,1761765042086,-500.0,0.00033702,2]
[392632457,1761765042098,-500.0,0.00033702,20]
[392632458,1761765042110,-500.0,0.00033702,20]
[392632459,1761765042122,-500.56416382,0.00033702,2]
[392632460,1761765042134,-501.32238251,0.00033702,2]